[Event "19th IPCA WCC 2019"]
[Site "Ruzomberok"]
[Date "2019.07.06"]
[Round "9.22"]
[White "Korber, Antonin"]
[Black "Kostova, Erika"]
[Result "1-0"]
[ECO "C00"]
[WhiteElo "1759"]
[BlackElo "1210"]
[Annotator "NA"]
[PlyCount "73"]
[EventDate "2019.06.28"]
[EventType "swiss"]
[EventCountry "SVK"]
[SourceTitle "playchess.com"]
[Source "ChessBase"]
[SourceQuality "1"]
[TimeControl "5400+30"]

1. e4 {[%emt 0:00:00]} e6 {[%emt 0:00:00]} 2. Nf3 {[%emt 0:00:00]} d5 {[%emt 0:00:00]} 3. exd5 {[%emt 0:00:53]} exd5 {[%emt 0:00:15]} 4. Be2 {[%emt 0:00:44]} Nf6 {[%emt 0:00:21]} 5. O-O {[%emt 0:00:47]} Be7 {[%emt 0:00:32]} 6. d4 {[%emt 0:00:37]} c6 {[%emt 0:00:43]} 7. Re1 {[%emt 0:00:56]} Be6 {[%emt 0:00:28]} 8. c3 {[%emt 0:01:12]} O-O {[%emt 0:00:34]} 9. Qc2 {[%emt 0:01:00]} h6 {[%emt 0:01:27]} 10. Bd3 {[%emt 0:01:56]} Kh8 {[%emt 0:01:33]} 11. Ne5 {[%emt 0:01:09]} Qd6 {[%emt 0:03:24]} 12. Bf4 {[%emt 0:01:33]} Qd8 {[%emt 0:01:43]} 13. Ng6+ {[%emt 0:04:36]} Kg8 {[%emt 0:02:06]} 14. Nxf8 {[%emt 0:00:53]} Qxf8 {[%emt 0:00:42]} 15. Nd2 {[%emt 0:01:40]} Bd6 {[%emt 0:01:05]} 16. Bxd6 {[%emt 0:04:30]} Qxd6 {[%emt 0:00:25]} 17. Nf3 {[%emt 0:00:49]} Nbd7 {[%emt 0:01:15]} 18. Re2 {[%emt 0:02:27]} Re8 {[%emt 0:00:42]} 19. Rae1 {[%emt 0:00:31]} Nf8 {[%emt 0:00:46]} 20. Ne5 {[%emt 0:04:10]} Qc7 {[%emt 0:04:29]} 21. f4 {[%emt 0:01:16]} Bg4 {[%emt 0:01:14]} 22. Re3 {[%emt 0:02:39]} Bh5 {[%emt 0:01:53]} 23. h3 {[%emt 0:03:42]} Ne6 {[%emt 0:07:11]} 24. g4 Nxf4 {[%emt 0:05:42]} 25. gxh5 {[%emt 0:07:33]} Nxd3 {[%emt 0:00:46]} 26. Qxd3 {[%emt 0:01:36]} Nxh5 {[%emt 0:03:19]} 27. Ng4 {[%emt 0:06:07]} Rf8 {[%emt 0:00:42]} 28. Qf5 Nf4 {[%emt 0:01:39]} 29. Nxh6+ {[%emt 0:08:15]} gxh6 {[%emt 0:00:54]} 30. Re7 {[%emt 0:09:13]} Qd6 {[%emt 0:01:29]} 31. Rd7 {[%emt 0:02:02]} Qg6+ {[%emt 0:00:59]} 32. Qxg6+ fxg6 {[%emt 0:00:28]} 33. Kh2 {[%emt 0:02:18]} Nd3 {[%emt 0:00:49]} 34. Ree7 {[%emt 0:01:48]} Rf2+ {[%emt 0:01:08]} 35. Kg3 {[%emt 0:00:18]} Rf8 {[%emt 0:02:37]} 36. Rg7+ {[%emt 0:00:35]} Kh8 {[%emt 0:00:15]} 37. Rh7+ {[%emt 0:00:13]} 1-0